bitfinex-derivatives/quotes_ETHF0:USTF0_20251031
["timestamp","ask_amount","ask_price","bid_price","bid_amount"]
[1761950269804,0.64839216,3862.3,3862.2,0.2345]
[1761950270105,0.86869216,3862.3,3862.0,8.947]
[1761950270298,0.2203,3862.3,3862.0,8.947]
[1761950272104,0.2203,3862.3,3862.0,9.41331]
[1761950273396,0.1334,3862.5,3862.0,8.947]
[1761950273397,0.2203,3862.1,3862.0,8.947]
[1761950273603,0.78783199,3862.1,3862.0,8.947]
[1761950274403,0.86881102,3862.1,3862.0,8.947]
[1761950275104,0.1334,3862.5,3862.0,9.1815]
[1761950275302,0.64856975,3862.4,3862.0,9.1815]
[1761950275601,0.64856975,3862.3,3862.0,9.1815]
[1761950275905,0.64856975,3862.2,3862.0,9.1815]
[1761950276099,0.1334,3862.5,3862.0,9.1815]
[1761950276406,0.648625,3862.4,3862.0,9.1815]
[1761950276589,0.648625,3862.3,3862.0,9.1815]
[1761950276788,0.648625,3862.2,3862.0,9.1815]
[1761950276997,0.1334,3862.5,3862.0,9.1815]
[1761950277193,0.64933482,3862.4,3862.0,9.1815]
[1761950277389,0.64933482,3862.3,3862.0,9.1815]
[1761950277594,0.64933482,3862.2,3862.0,9.1815]
[1761950277794,0.1334,3862.5,3862.0,9.1815]
[1761950277990,0.64942282,3862.4,3862.0,9.1815]
[1761950278205,0.64942282,3862.3,3862.0,9.1815]
[1761950278406,0.64942282,3862.2,3862.0,9.1815]
[1761950278606,0.56844644,3862.1,3862.0,9.1815]
[1761950279106,0.64942282,3862.1,3862.0,9.1815]
[1761950279513,0.64942282,3862.1,3862.0,9.3095]
[1761950279700,3.2104421,3862.7,3862.0,9.3095]
[1761950279701,0.0026421,3862.7,3862.6,0.70074]
[1761950280004,0.0026421,3862.7,3862.6,12.85354]
[1761950281210,0.0026421,3862.7,3862.6,14.24838358]
[1761950281508,0.0026421,3862.7,3862.6,12.85354]
[1761950286904,0.2229421,3862.7,3862.6,3.2078]
[1761950287110,0.1334,3862.5,3862.2,3.2078]
[1761950287298,0.2203,3862.4,3862.2,3.2078]
[1761950287498,0.1334,3862.5,3862.2,12.85559]
[1761950287696,0.1334,3862.5,3862.2,12.3893]
[1761950288098,0.0026421,3862.7,3862.4,0.2345]
[1761950288300,0.0026421,3862.7,3862.3,0.46627]
[1761950288301,0.56790172,3862.6,3862.5,0.2345]
[1761950289704,0.78820172,3862.6,3862.5,0.2345]
[1761950289912,0.1334,3862.5,3862.2,12.1548]
[1761950292512,0.1334,3862.5,3862.2,12.62109]
[1761950292712,0.1334,3862.5,3862.3,0.46628]
[1761950293016,0.1334,3862.5,3862.2,12.1548]
[1761950293213,0.1334,3862.5,3862.2,12.62109]
[1761950295216,0.1334,3862.5,3862.4,0.70136]
[1761950295410,0.0026421,3862.7,3862.6,0.70134]
[1761950295704,0.0026421,3862.7,3862.6,9.64534]
[1761950295914,0.0026421,3862.7,3862.6,12.85314]
[1761950301425,3.3412,3864.0,3863.4,0.2236]
[1761950301610,0.64840374,3863.9,3863.4,9.1686]
[1761950301811,0.64840374,3863.8,3863.4,9.1686]
[1761950302011,0.64840374,3863.7,3863.6,0.2236]
[1761950302317,0.65082444,3863.7,3863.6,0.22610211]
[1761950304021,0.87352444,3863.7,3863.6,0.00250211]
[1761950308226,0.65082444,3863.7,3863.6,0.22610211]
[1761950308721,0.65082444,3863.7,3863.6,0.69222211]
[1761950309721,0.56987496,3863.7,3863.6,3.90002211]
[1761950309925,0.0024207,3863.7,3863.6,3.90002211]
[1761950314437,0.1323,3864.5,3864.0,0.46607]
[1761950314636,0.1323,3864.5,3864.4,0.2236]
[1761950314830,3.2078,3864.8,3864.6,0.2236]
[1761950315030,0.67134497,3864.7,3864.6,0.2236]
[1761950315534,0.3587,3864.5,3864.4,8.946]
[1761950315734,0.3587,3864.5,3864.1,3.2078]
[1761950315936,0.3587,3864.5,3863.3,1.39484358]
[1761950315937,0.2227,3863.7,3863.5,3.2078]
[1761950316239,0.2227,3863.7,3863.6,9.41362211]
[1761950316738,0.2227,3863.7,3863.6,9.63722211]
[1761950317038,0.136,3864.0,3863.6,9.63722211]
[1761950317440,0.2227,3863.7,3863.6,8.94750211]
[1761950317740,0.2227,3863.7,3863.6,9.17110211]
[1761950318039,0.136,3864.0,3863.6,9.17110211]
[1761950320139,0.136,3864.0,3863.7,8.945]
[1761950320535,0.2283,3863.7,3863.6,0.00250211]
[1761950322443,0.79406394,3863.7,3863.6,0.00250211]
[1761950323334,0.87501208,3863.7,3863.6,0.00250211]
[1761950325433,0.2283,3862.8,3862.7,3.2078]
[1761950325633,0.2283,3862.8,3862.7,12.1518]
[1761950326644,0.2283,3862.8,3862.7,12.15461726]
[1761950326939,0.30926495,3862.8,3862.7,8.94681726]
[1761950327141,0.87574252,3862.8,3862.7,8.94681726]
[1761950328236,0.87574252,3862.8,3862.7,0.00281726]
[1761950330942,0.87574252,3862.8,3862.7,0.21941726]
[1761950331146,0.1284,3863.0,3862.7,0.21941726]
[1761950331340,0.64689541,3862.9,3862.7,0.21941726]
[1761950331540,0.1284,3863.0,3862.7,0.21941726]
[1761950331845,0.2283,3862.8,3862.7,0.00281726]
[1761950333147,0.3092687,3862.8,3862.7,0.00281726]
[1761950333347,0.87507341,3862.8,3862.7,0.00281726]
[1761950335452,0.79410471,3862.8,3862.7,0.00281726]
[1761950336146,0.87507444,3862.8,3862.7,0.00281726]
[1761950336350,0.79410471,3862.8,3862.7,0.00281726]
[1761950339149,3.3362,3863.0,3862.7,0.21941726]
[1761950339351,3.3362,3863.0,3862.9,0.2166]
[1761950340949,3.5645,3863.0,3862.9,0.2166]
[1761950341157,0.2283,3862.8,3862.7,0.00281726]
[1761950341652,0.30926916,3862.8,3862.7,0.00281726]
[1761950341851,0.30926916,3862.8,3861.6,3.2078]
[1761950341852,0.2283,3861.8,3861.6,3.2078]
[1761950342156,0.1284,3862.5,3861.9,0.2166]
[1761950342952,0.13089329,3862.5,3861.9,0.2187589]
[1761950343751,0.00249329,3862.5,3862.4,0.2166]
[1761950346959,0.13089329,3862.5,3862.4,0.2166]
[1761950349863,0.35919329,3862.5,3861.9,0.0021589]
[1761950350155,0.35919329,3862.5,3862.0,8.963]
[1761950351163,0.56798755,3862.4,3862.0,8.963]
[1761950351461,0.13089329,3862.5,3862.0,8.963]
[1761950351649,0.56798755,3862.4,3862.0,8.963]
[1761950351852,0.13089329,3862.5,3862.0,8.963]
[1761950352054,0.13089329,3862.5,3862.4,0.2216]
[1761950352258,0.77997484,3862.5,3862.4,0.2216]
[1761950352459,0.69900405,3862.5,3862.4,0.2216]
[1761950353364,0.77997311,3862.5,3862.4,0.2216]
[1761950355159,0.65157311,3862.5,3862.4,0.2216]
[1761950355766,0.78747311,3862.5,3862.4,0.2216]
[1761950357163,0.65157311,3862.5,3862.4,0.2216]
[1761950357369,0.78747311,3862.5,3862.4,0.2216]
[1761950357672,1.00977311,3862.5,3862.4,0.2216]
[1761950361072,1.00977311,3862.5,3862.1,0.4663]
[1761950361275,0.64907982,3862.4,3862.1,0.4663]
[1761950361469,0.64907982,3862.3,3862.2,0.2208]
[1761950361671,0.86987982,3862.3,3862.0,8.963]
[1761950361876,0.56811076,3862.2,3862.0,8.963]
[1761950362173,0.13839329,3862.5,3862.0,8.963]
[1761950362372,0.65011391,3862.4,3862.0,8.963]
[1761950362674,0.65011391,3862.3,3862.0,8.963]
[1761950362871,0.56913926,3862.2,3862.0,8.963]
[1761950363172,0.13839329,3862.5,3862.0,8.963]
[1761950363468,0.65011025,3862.4,3862.0,8.963]
[1761950363665,0.13839329,3862.5,3862.0,8.963]
[1761950363666,0.2208,3862.1,3862.0,8.963]
[1761950363870,0.30177465,3862.1,3862.0,8.963]
[1761950364068,0.87091025,3862.1,3862.0,8.963]
[1761950364775,0.87091025,3862.1,3862.0,9.1838]
[1761950364973,0.65011025,3862.1,3862.0,9.1838]
[1761950369376,0.87091025,3862.1,3862.0,9.1838]
[1761950370370,0.30177465,3862.1,3862.0,9.1838]
[1761950370874,0.87378605,3862.1,3862.0,9.1838]
[1761950371264,0.65298605,3862.1,3862.0,9.1838]
[1761950383580,3.11089217,3862.4,3862.3,0.225]
[1761950383886,0.00249329,3862.5,3862.4,0.225]
[1761950387282,0.13969329,3862.5,3862.4,0.225]
[1761950392493,0.36579329,3862.5,3862.0,3.2078]
[1761950392696,0.36579329,3862.5,3861.9,1.39700248]
[1761950392697,0.3633,3862.0,3861.9,0.0021589]
[1761950392992,0.1372,3862.0,3861.9,0.2271589]
[1761950395387,0.3633,3862.0,3861.9,0.2271589]
[1761950395593,1.01377399,3862.0,3861.9,0.2271589]
[1761950398799,1.01377399,3862.0,3861.9,0.0021589]
[1761950399200,1.01377399,3862.0,3861.9,8.9541589]
[1761950399597,4.22157399,3862.0,3861.9,8.9541589]
[1761950401300,4.22157399,3862.0,3861.9,0.0021589]
[1761950401490,0.2261,3861.6,3861.5,3.565]
[1761950401691,3.51488489,3861.6,3861.5,3.565]
[1761950402001,4.08437399,3861.6,3861.5,3.565]
[1761950402493,4.08437399,3861.6,3861.5,3.56804872]
[1761950403303,3.85827399,3861.6,3861.5,3.79304872]
[1761950403505,0.1372,3862.0,3861.9,0.225]
[1761950403692,0.64886208,3862.0,3861.9,0.225]
[1761950404202,3.2078,3862.1,3862.0,0.225]
[1761950404398,0.13969329,3862.5,3862.0,0.225]
[1761950404603,0.64878117,3862.4,3862.3,0.225]
[1761950405797,0.64877291,3862.4,3862.3,0.225]
[1761950409500,0.56780084,3862.4,3862.3,0.225]
[1761950410300,0.00249329,3862.5,3862.4,0.225]
[1761950411706,0.13199329,3862.5,3862.4,0.225]
[1761950412007,0.36629329,3862.5,3862.4,9.181]
[1761950415601,0.93384527,3862.5,3862.4,0.225]
[1761950415911,0.93384527,3862.5,3862.4,8.297]
[1761950415912,1.01481979,3862.5,3862.4,8.297]
[1761950418417,1.01481979,3862.5,3861.7,3.67415]
[1761950418714,0.6485265,3862.4,3861.8,9.41934]
[1761950418916,0.13199329,3862.5,3861.8,9.41934]
[1761950419212,0.64858994,3862.4,3861.8,9.41934]
[1761950419414,0.13199329,3862.5,3861.8,9.41934]
[1761950419711,0.64860409,3862.4,3861.8,9.41934]
[1761950419911,0.13199329,3862.5,3861.8,9.41934]
[1761950420111,0.6485834,3862.4,3861.8,9.41934]
[1761950420313,0.13199329,3862.5,3861.8,9.41934]
[1761950420513,0.64858909,3862.4,3861.8,9.41934]
[1761950420712,0.13199329,3862.5,3861.9,0.46632]
[1761950420913,0.64858909,3862.4,3862.3,0.2254]
[1761950421120,0.56761598,3862.4,3862.3,9.1774]
[1761950427326,0.64858859,3862.4,3862.3,9.1774]
[1761950432627,0.64826513,3862.4,3862.3,9.1774]
[1761950433916,0.64826704,3862.4,3862.3,9.1774]
[1761950434527,0.64826704,3862.4,3862.3,9.64368]
[1761950434735,0.00249329,3862.5,3862.4,0.69166]
[1761950438429,0.00249329,3862.5,3862.4,0.2254]
[1761950440931,0.71058159,3862.5,3862.4,0.2254]
[1761950441429,0.71058159,3862.5,3862.4,0.69167]
[1761950441631,0.71058159,3862.5,3862.4,0.2254]
[1761950442430,0.79155099,3862.5,3862.4,0.2254]
[1761950449237,1.02715099,3862.5,3862.4,9.1724]
[1761950449442,1.02715145,3862.5,3862.4,9.1724]
[1761950453145,1.02715145,3862.5,3862.0,1.39484358]
[1761950453349,0.5673883,3862.4,3862.1,9.4133]
[1761950453746,0.5673883,3862.4,3862.3,0.2157]
[1761950454348,0.64835905,3862.4,3862.3,0.2157]
[1761950455446,0.88395905,3862.4,3862.1,8.947]
[1761950455649,0.5673883,3862.3,3862.2,0.2157]
[1761950456048,0.5673883,3862.4,3862.2,0.2157]
[1761950456353,0.5673883,3862.3,3862.2,0.2157]
[1761950456545,0.5673883,3862.4,3862.2,0.2157]
[1761950456847,0.5673883,3862.3,3862.2,0.68199]
[1761950457746,0.5673883,3862.3,3862.2,0.2157]
[1761950459250,0.8029883,3862.3,3862.1,8.947]
[1761950459445,0.1407,3862.0,3861.9,1.39484358]
[1761950459645,0.3763,3862.0,3861.9,8.947]
[1761950460453,0.3763,3862.0,3861.9,9.41333]
[1761950460953,0.3763,3862.0,3861.9,9.62903]
[1761950461553,0.3763,3862.0,3861.9,9.1627]
[1761950461751,0.3763,3862.0,3861.8,1.86118358]
[1761950461949,0.3763,3862.0,3861.9,8.947]
[1761950462148,0.3763,3862.0,3861.8,1.39484358]
[1761950462345,0.3763,3862.0,3861.9,8.947]
[1761950462547,0.2356,3861.6,3861.5,1.3978923]
[1761950462748,0.2356,3861.6,3861.5,8.95004872]
[1761950463950,0.88275226,3861.6,3861.5,8.95004872]
[1761950464456,0.80176468,3861.6,3861.5,8.95004872]
[1761950464959,0.64715299,3861.6,3861.5,9.16574872]
[1761950466860,0.88275299,3861.6,3861.5,9.16574872]
[1761950467062,0.64715299,3861.6,3861.5,9.16574872]
[1761950468266,0.56616468,3861.6,3861.5,9.16574872]
[1761950468562,0.80176468,3861.6,3861.5,8.95004872]
[1761950469362,0.56616468,3861.6,3861.5,9.16574872]
[1761950469953,0.80176468,3861.6,3861.5,9.16574872]
[1761950470164,0.2356,3861.6,3861.5,9.16574872]
[1761950472161,0.2356,3861.6,3861.5,8.95004872]
[1761950474868,0.88146629,3861.6,3861.5,8.95004872]
[1761950476864,0.88146629,3861.6,3861.5,0.00304872]
[1761950478464,0.88146629,3861.6,3860.7,3.2078]
[1761950478666,0.138,3861.0,3860.8,8.949]
[1761950479267,0.138,3861.0,3860.9,0.2198]
[1761950479566,0.138,3861.0,3860.9,0.22208583]
[1761950481558,0.3689,3861.0,3860.9,0.00228583]
[1761950481968,0.3689,3861.0,3860.9,8.95128583]
[1761950482168,0.3689,3861.0,3860.9,0.00228583]
[1761950482368,0.3689,3861.0,3860.9,8.95128583]
[1761950483277,0.3689,3861.0,3860.9,9.17108583]
[1761950485068,3.5767,3861.0,3860.9,0.00228583]
[1761950485274,4.22260295,3861.0,3860.9,0.00228583]
[1761950485766,4.22260295,3861.0,3859.9,3.2078]
[1761950485970,0.3689,3860.5,3860.4,8.949]
[1761950486874,0.3689,3860.5,3860.4,8.95159583]
[1761950488467,0.3689,3860.5,3860.4,0.00259583]
[1761950488766,1.01564998,3860.5,3860.4,0.00259583]
[1761950495073,4.22344998,3860.5,3860.4,0.00259583]
[1761950495670,0.2309,3860.1,3860.0,8.95]
[1761950496577,0.2309,3860.1,3860.0,8.9521064]
[1761950497778,3.4387,3860.1,3860.0,8.9521064]
[1761950497972,4.00399264,3860.1,3860.0,8.9521064]
[1761950499678,4.00399264,3860.1,3860.0,0.0021064]
[1761950501283,3.4387,3860.1,3860.0,0.0021064]
[1761950503286,4.00405326,3860.1,3860.0,0.0021064]
[1761950505185,4.08508087,3860.1,3860.0,0.0021064]
[1761950508392,3.85418087,3860.1,3860.0,0.2333064]
[1761950508585,4.07938087,3860.1,3860.0,0.2333064]
[1761950508983,4.07938087,3860.1,3860.0,0.0021064]
[1761950512089,3.85418087,3860.1,3860.0,0.0021064]
[1761950512277,3.85418087,3860.1,3860.0,0.2333064]
[1761950512480,3.2078,3860.5,3860.4,0.2312]
[1761950512678,3.85536462,3860.5,3860.4,0.2312]
[1761950513296,3.85536082,3860.5,3860.4,0.2312]
[1761950514195,4.21296082,3860.5,3860.0,0.0021064]
[1761950514385,0.2252,3860.1,3860.0,0.0021064]
[1761950514584,0.87297073,3860.1,3860.0,0.0021064]
[1761950520598,0.87297073,3860.1,3860.0,0.2333064]
[1761950520599,0.64777073,3860.1,3860.0,0.2333064]
[1761950520802,0.64777073,3860.1,3860.0,0.6998564]
[1761950521295,0.64777073,3860.1,3860.0,0.2333064]
[1761950522197,3.2078,3860.9,3860.8,0.2312]
[1761950522498,4.08093896,3860.9,3860.5,8.951]
[1761950522798,0.64793896,3860.8,3860.5,8.951]
[1761950523098,0.64793896,3860.7,3860.6,0.2312]
[1761950523490,0.87313896,3860.7,3860.6,0.2312]
[1761950523691,0.87313896,3860.7,3860.5,8.951]
[1761950523891,0.56692923,3860.6,3860.5,8.951]
[1761950524196,0.138,3861.0,3860.5,8.951]
[1761950524398,0.64754877,3860.9,3860.5,8.951]
[1761950524698,0.64754877,3860.8,3860.5,8.951]
[1761950524901,0.64754877,3860.7,3860.5,8.951]
[1761950525198,0.79182682,3860.6,3860.5,8.951]
[1761950527200,0.2252,3860.6,3860.5,8.951]
[1761950529395,0.3576,3860.5,3860.4,8.95]
[1761950531906,0.3576,3860.5,3860.4,9.1812]
[1761950532095,0.1324,3860.5,3860.4,9.1812]
[1761950534105,0.3581,3860.5,3860.4,8.95]
[1761950535814,0.1324,3860.5,3860.4,9.1664]
[1761950536005,0.69874547,3860.5,3860.4,9.1664]
[1761950538405,0.77975877,3860.5,3860.4,9.1664]
[1761950543904,0.77975897,3860.5,3860.4,9.1664]
[1761950546509,0.64735897,3860.5,3860.4,9.1664]
[1761950547901,1.00565897,3860.5,3860.4,8.95]
[1761950553016,1.00565897,3860.5,3860.0,8.9511064]
[1761950553203,0.64735897,3860.4,3860.0,8.9511064]
[1761950553408,0.64735897,3860.3,3860.0,8.9511064]
[1761950553710,0.64735897,3860.2,3860.1,0.2283]
[1761950554408,0.64736386,3860.2,3860.1,0.2283]
[1761950563920,0.08101839,3860.2,3860.1,0.2283]
[1761950564121,0.64841708,3860.2,3860.1,0.2283]
[1761950564523,0.64841446,3860.2,3860.1,0.2283]
[1761950568523,0.64841446,3860.2,3860.1,0.69484]
[1761950568921,3.2078,3860.6,3860.5,0.2314]
[1761950569223,0.64849551,3860.6,3860.5,0.2314]
[1761950569824,0.3618,3860.5,3860.4,8.948]
[1761950570019,1.01029337,3860.5,3860.4,8.948]
[1761950574127,1.01029337,3860.5,3860.4,9.64591]
[1761950574426,0.77819337,3860.5,3860.4,9.1794]
[1761950579529,0.77819318,3860.5,3860.4,9.1794]
[1761950582526,1.01029318,3860.5,3860.4,9.1794]
[1761950582728,1.01029719,3860.5,3860.4,8.948]
[1761950583128,0.77819719,3860.5,3860.4,9.1794]
[1761950583924,1.01029719,3860.5,3860.4,8.948]
[1761950584132,0.64849719,3860.5,3860.4,9.1794]
[1761950584333,0.64849719,3860.5,3860.4,9.64591]
[1761950584937,0.64849719,3860.5,3860.4,9.1794]
[1761950585532,0.08101558,3860.5,3860.4,9.1794]
[1761950585925,0.65085194,3860.5,3860.4,9.1794]
[1761950599550,0.78105194,3860.5,3860.4,9.1794]
[1761950600554,0.65085194,3860.5,3860.4,9.1794]
[1761950601255,0.78105194,3860.5,3860.4,9.1794]
[1761950607058,1.00595194,3860.5,3860.1,3.2078]
[1761950607261,0.3551,3860.5,3860.4,8.946]
[1761950607557,1.00635801,3860.5,3860.4,8.946]
[1761950610553,1.00635801,3860.5,3860.4,9.1586]
[1761950610753,0.78145801,3860.5,3860.4,9.1586]
[1761950614661,0.78145837,3860.5,3860.4,9.1586]
[1761950622665,1.00635837,3860.5,3860.4,9.1586]
[1761950623174,1.00635837,3860.5,3860.4,8.946]
[1761950624968,1.00635837,3860.5,3860.4,9.1729]
[1761950625168,0.78145837,3860.5,3860.4,9.1729]
[1761950625563,0.65125837,3860.5,3860.4,9.1729]
[1761950628367,0.79075837,3860.5,3860.4,9.1729]
[1761950629368,1.01895837,3860.5,3860.4,8.946]
[1761950629672,0.2282,3860.3,3860.2,8.945]
[1761950629862,0.30921542,3860.3,3860.2,8.945]
[1761950630068,0.87945837,3860.3,3860.2,8.945]
[1761950630266,0.87945837,3860.3,3860.0,8.9471064]
[1761950630566,0.65125837,3860.2,3860.0,8.9471064]
[1761950630764,0.65125837,3860.1,3860.0,9.1740064]
[1761950643591,0.87945837,3860.1,3860.0,9.1740064]
[1761950644284,0.87945837,3860.1,3859.3,4.60264358]
[1761950644285,0.2282,3859.9,3859.3,4.60264358]
[1761950644487,0.65125837,3859.8,3859.4,8.945]
[1761950644678,0.65125837,3859.7,3859.6,0.2269]
[1761950645286,0.65347703,3859.7,3859.6,0.23026097]
[1761950649181,0.88167703,3859.7,3859.6,0.00336097]
[1761950649696,0.88167703,3859.7,3859.6,0.23026097]
[1761950652197,0.65347703,3859.7,3859.6,0.23026097]
[1761950654097,0.57246161,3859.7,3859.6,0.23026097]
[1761950654298,0.65349237,3859.7,3859.6,0.23026097]
[1761950656905,0.86969237,3859.7,3859.6,0.00336097]
[1761950659303,0.86969261,3859.7,3859.6,0.00336097]
[1761950661906,0.2249,3859.4,3859.3,3.2078]
[1761950662105,0.305931,3859.4,3859.3,3.2078]
[1761950662307,0.87617395,3859.4,3859.3,3.2078]
[1761950662908,0.87617395,3859.4,3859.3,3.2102787]
[1761950666006,0.87617395,3859.4,3859.3,0.0024787]
[1761950668810,4.08397395,3859.4,3859.3,0.0024787]
[1761950673811,0.2249,3858.6,3858.5,3.4405]
[1761950674009,0.1381,3859.0,3858.5,3.4405]
[1761950674209,0.65317054,3858.9,3858.5,3.4405]
[1761950674413,0.5721216,3858.8,3858.5,3.4405]
[1761950674714,0.1381,3859.0,3858.5,3.44296564]
[1761950674908,0.65312071,3858.9,3858.5,3.44296564]
[1761950675119,0.57207177,3858.8,3858.5,3.44296564]
[1761950675419,0.1381,3859.0,3858.5,3.44296564]
[1761950675617,0.65305343,3858.9,3858.5,3.44296564]
[1761950675914,0.1381,3859.0,3858.5,3.44296564]
[1761950675915,0.572004,3858.8,3858.5,3.44296564]
[1761950676115,0.1381,3859.0,3858.5,3.44296564]
[1761950676313,0.65305357,3858.9,3858.5,3.44296564]
[1761950676514,0.57200413,3858.8,3858.5,3.44296564]
[1761950676714,0.1381,3859.0,3858.5,3.44296564]
[1761950676914,0.65299887,3858.9,3858.5,3.44296564]
[1761950677115,0.57194943,3858.8,3858.5,3.44296564]
[1761950677414,0.1381,3859.0,3858.5,3.44296564]
[1761950677619,0.65295506,3858.9,3858.5,3.44296564]
[1761950677814,0.57190562,3858.8,3858.5,3.44296564]
[1761950678006,0.1381,3859.0,3858.5,3.44296564]
[1761950678210,0.65280211,3858.9,3858.5,3.44296564]
[1761950678406,0.57175267,3858.8,3858.5,3.44296564]
[1761950678613,0.1381,3859.0,3858.5,3.44296564]
[1761950678814,0.65276482,3858.9,3858.5,3.44296564]
[1761950679009,0.57171538,3858.8,3858.5,3.44296564]
[1761950679220,0.1381,3859.0,3858.5,3.44296564]
[1761950679421,0.65274556,3858.9,3858.5,3.44296564]
[1761950679624,0.57169612,3858.8,3858.5,3.44296564]
[1761950679813,0.1381,3859.0,3858.5,3.44296564]
[1761950680013,0.65269214,3858.9,3858.5,3.44296564]
[1761950680214,0.65269214,3858.8,3858.5,3.44296564]
[1761950680422,0.5716427,3858.7,3858.5,3.44296564]
[1761950680618,0.1381,3859.0,3858.5,3.44296564]
[1761950680918,0.1309,3858.5,3857.8,1.86166358]
[1761950681225,0.65262454,3858.4,3857.8,9.41082]
[1761950681419,0.57156308,3858.3,3857.8,8.944]
[1761950681619,3.3387,3858.5,3857.8,8.944]
[1761950681821,0.65242574,3858.4,3857.8,8.944]
[1761950682130,0.57136388,3858.3,3857.8,8.94609926]
[1761950682316,3.3387,3858.5,3857.8,8.94609926]
[1761950682517,0.65229035,3858.4,3857.8,8.94609926]
[1761950682717,0.57122776,3858.3,3857.8,8.94609926]
[1761950682919,3.3387,3858.5,3857.8,8.94609926]
[1761950683118,0.65235187,3858.4,3857.8,8.94609926]
[1761950683318,0.57128928,3858.3,3857.8,8.94609926]
[1761950683522,3.3387,3858.5,3857.8,8.94609926]
[1761950683724,0.65226397,3858.4,3857.8,8.94609926]
[1761950684027,0.57120138,3858.3,3857.8,8.94609926]
[1761950684221,3.3387,3858.5,3857.8,9.41291926]
[1761950684427,0.65222302,3858.4,3857.8,9.41291926]
[1761950684627,0.57116104,3858.3,3857.8,9.41291926]
[1761950684819,3.3387,3858.5,3857.8,9.41291926]
[1761950685026,0.65222665,3858.4,3857.8,9.41291926]
[1761950685321,0.57116418,3858.3,3857.8,9.41291926]
[1761950685518,3.3387,3858.5,3857.8,9.41291926]
[1761950685716,0.65217166,3858.4,3857.8,9.41291926]
[1761950686029,0.57110944,3858.3,3857.8,9.41291926]
[1761950686328,3.3387,3858.5,3857.8,8.94609926]
[1761950686529,0.65213907,3858.4,3857.8,8.94609926]
[1761950686825,0.57107621,3858.3,3857.8,8.94609926]
[1761950687124,3.3387,3858.5,3857.8,8.94609926]
[1761950687326,0.65213917,3858.4,3857.8,8.94609926]
[1761950687534,0.57107631,3858.3,3857.8,8.94609926]
[1761950687733,3.3387,3858.5,3857.8,8.94609926]
[1761950688025,0.65214065,3858.4,3857.8,8.94609926]
[1761950688225,0.57107777,3858.3,3857.8,8.94609926]
[1761950688526,3.3387,3858.5,3857.8,8.94609926]
[1761950688726,0.65215949,3858.4,3857.8,8.94609926]
[1761950688928,0.57109657,3858.3,3857.8,8.94609926]
[1761950689128,3.3387,3858.5,3857.8,8.94609926]
[1761950689328,0.65215984,3858.4,3857.8,8.94609926]
[1761950689634,0.57109692,3858.3,3857.8,8.94609926]
[1761950689830,3.3387,3858.5,3857.8,8.94609926]
[1761950690023,0.65166314,3858.4,3857.8,8.94609926]
[1761950690328,0.57064088,3858.3,3857.8,8.94609926]
[1761950690527,3.3387,3858.5,3857.8,8.94609926]
[1761950690831,0.1309,3858.0,3857.8,8.94609926]
[1761950692433,0.1309,3858.0,3857.9,0.2264]
[1761950694027,0.2308,3857.9,3857.8,0.00209926]
[1761950694232,0.3617,3857.5,3857.3,3.2078]
[1761950694437,0.2308,3857.4,3857.3,3.2078]
[1761950695134,0.2308,3857.4,3857.3,3.21024782]
[1761950697335,0.1309,3857.5,3857.3,3.43664782]
[1761950700138,0.1309,3857.5,3857.3,0.22884782]
[1761950701740,0.2308,3857.4,3857.3,0.22884782]
[1761950701940,0.1309,3857.5,3857.4,0.2264]
[1761950702138,0.78054479,3857.5,3857.4,0.2264]
[1761950702340,0.69946218,3857.5,3857.4,0.2264]
[1761950702539,0.93026218,3857.5,3857.3,0.00244782]
[1761950702731,0.3617,3857.5,3857.3,0.00244782]
[1761950705243,0.2308,3857.4,3857.3,0.00244782]
[1761950705742,3.2078,3857.7,3857.6,0.2264]
[1761950705942,3.85743244,3857.7,3857.6,0.2264]
[1761950706241,4.08823244,3857.7,3857.3,0.00244782]
[1761950706443,0.1309,3857.5,3857.3,0.00244782]
[1761950710041,0.2308,3857.4,3857.3,0.00244782]
[1761950711041,0.1332,3857.0,3856.5,3.2078]
[1761950711240,0.1332,3856.5,3856.2,1.39484358]
[1761950711446,0.1332,3856.5,3855.9,8.946]
[1761950712047,3.2078,3856.3,3855.9,8.94792028]
[1761950714146,3.2078,3856.3,3856.2,0.2274]
[1761950719455,3.2078,3856.3,3856.2,0.69441]
[1761950720254,0.00237923,3856.5,3856.4,0.69169]
[1761950720445,0.00237923,3856.5,3856.4,9.63869]
[1761950724552,0.00237923,3856.5,3856.4,9.1717]
[1761950725950,0.36047923,3856.5,3855.9,1.86381386]
[1761950726159,3.2078,3856.3,3856.0,8.947]
[1761950727161,3.2078,3856.3,3856.2,0.2247]
[1761950728157,3.2078,3856.3,3856.1,8.947]
[1761950728158,3.4337,3856.3,3856.1,8.947]
[1761950728362,0.2259,3856.2,3856.1,8.947]
[1761950728554,3.2078,3856.3,3855.4,1.39484358]
[1761950728555,0.1322,3855.5,3855.4,1.39484358]
[1761950728856,0.1322,3855.5,3855.4,0.2247]
[1761950729654,0.1322,3855.5,3855.4,0.22703351]
[1761950730755,3.2078,3855.9,3855.4,0.22703351]
[1761950731349,3.2078,3855.9,3855.4,0.00233351]
[1761950731548,3.2078,3855.9,3855.4,0.46944351]
[1761950731957,3.2078,3855.9,3855.5,0.4671]
[1761950733655,3.2078,3855.9,3855.8,0.2247]
[1761950738565,3.67485,3855.9,3855.8,0.2247]
[1761950739063,0.46705,3855.9,3855.8,0.2247]
[1761950739266,3.67485,3855.9,3855.8,0.2247]
[1761950741357,3.67485,3855.9,3855.6,0.216]
[1761950741358,3.2078,3855.9,3855.6,0.216]
[1761950741556,0.46708,3855.7,3855.6,0.216]
[1761950741758,3.2078,3855.9,3855.6,0.68309]
[1761950741960,0.46708,3855.7,3855.6,0.68309]
[1761950743366,3.67486,3855.9,3855.8,0.216]
[1761950750372,3.2078,3855.9,3855.6,0.46709]
[1761950751370,0.46709,3855.7,3855.6,0.68309]
[1761950758382,1.0384153,3855.7,3855.6,0.68309]
[1761950759781,0.5713253,3855.7,3855.6,0.68309]
[1761950759977,3.2078,3856.4,3855.8,1.16767]
[1761950760177,3.2078,3856.4,3856.3,0.683]
[1761950761080,0.00237923,3856.5,3856.4,0.68299]
[1761950763985,0.00237923,3856.5,3856.4,2.080124]